Cogmind - Beta 15 --- EXPLORER MODE // 2025.06.11 @ 13:26:01 Player: viper Result: Destroyed by S-10 Pest with Light Assault Rifle Performance ------------- Evolutions (0) 0 Regions Visited (2) 400 Robots Destroyed (23) 115 Value Destroyed (686) 686 Prototype IDs (2) 40 Alien Tech Used (0) 0 Bonus (0) 0 TOTAL SCORE: 1241 Bonus ------- None Cogmind --------- Core Integrity 0/250 Matter 294/300 Energy 300/300 System Corruption 0% Temperature Cool (0) Movement Walking (190) Ox1 Location -10/Subcaves Parts ------- > --- POWER (2) -------- Subdweller Power Source Subdweller Power Source > --- PROPULSION (2) --- Aluminum Leg Aluminum Leg > --- UTILITY (2) ------ Large Storage Unit Signal Interpreter > --- WEAPON (2) ------- Battle Rifle Battle Rifle > --- INVENTORY (15) --- Arachnoskeleton Large Matter Pod (150) Large Matter Pod (150) Subdweller Optics Terrain Scanner Targeting Computer Core Shielding Propulsion Shielding Utility Shielding Subdweller Beam Cannon Dirty Datajack (20) Mining Claw Makeshift Sword Peak State ------------ > --- POWER ------------ Subdweller Power Source Subdweller Power Source > --- PROPULSION ------- Aluminum Leg Aluminum Leg > --- UTILITY ---------- Large Storage Unit Signal Interpreter > --- WEAPON ----------- Battle Rifle Battle Rifle > --- INVENTORY -------- Arachnoskeleton Large Matter Pod Large Matter Pod Subdweller Optics Terrain Scanner Targeting Computer Core Shielding Propulsion Shielding Utility Shielding Subdweller Beam Cannon Dirty Datajack Mining Claw Makeshift Sword [Rating: 16] Favorites ----------- Power Ion Engine Engine Ion Engine Propulsion Aluminum Leg Leg Aluminum Leg Utility Signal Interpreter Storage Large Storage Unit Processor Signal Interpreter Weapon Light Assault Rifle Energy Gun EM Pulse Gun Energy Cannon Subdweller Beam Cannon Ballistic Gun Light Assault Rifle Slashing Weapon Mining Claw Build | -11 -10 -10 ------- Run | Yrd Mat Sub Slots Evolved 1 | . 1 . Power 1 | . 1 . Propulsion . | . . . Utility . | . . . Weapon . | . . . Parts Attached 21 | 7 6 8 Power 6 | 1 2 3 Engine 6 | 1 2 3 Core . | . . . Reactor . | . . . Propulsion 5 | 2 2 1 Treads . | . . . Leg 5 | 2 2 1 Wheel . | . . . Hover . | . . . Flight . | . . . Utility 3 | 2 1 . Device . | . . . Storage 2 | 1 1 . Processor 1 | 1 . . Hackware . | . . . Protection . | . . . Artifact . | . . . Weapon 7 | 2 1 4 Energy Gun 2 | 1 1 . Energy Cannon 1 | . . 1 Ballistic Gun 3 | 1 . 2 Ballistic Cannon . | . . . Launcher . | . . . Special Weapon . | . . . Impact Weapon . | . . . Slashing Weapon 1 | . . 1 Piercing Weapon . | . . . Special Melee Weapon . | . . . Unidentified Prototypes . | . . . Parts Lost 9 | . 2 7 Power 3 | . 1 2 Propulsion 3 | . . 3 Utility . | . . . Weapon 3 | . 1 2 Highest Loss Streak 3 | . 2 3 To Critical Strikes . | . . . Average Backups 10 | 1 7 13 Power . | . . . Propulsion 1 | . 1 2 Utility 6 | . 5 7 Weapon 1 | . 1 2 Tool/Special . | . . . Unused Backups 14 | . 1 13 Power . | . . . Propulsion 2 | . 1 1 Utility 8 | . . 8 Weapon 3 | . . 3 Tool/Special 1 | . . 1 Average Slot Usage (%) 98 | . 99 97 Engine 24 | . 24 24 Leg 24 | . 25 24 Storage 12 | . 12 12 Processor 12 | . 12 12 Energy Gun 9 | . 12 6 Ballistic Gun 11 | . 11 11 Slashing Weapon 2 | . . 4 Peak Build Rating 16 | 7 9 16 Average Rating 9 | 5 8 10 On Entrance 5 | . 7 9 Naked Turns . | . . . Heaviest Build 40 | 18 34 40 Greatest Support 20 | 20 20 20 Greatest Overweight (x) 10 | 2 10 3 Average Overweight (x) . | . 1 1 Largest Inventory Capacity 15 | 10 15 15 Average Capacity 14 | 8 14 15 Most Carried 15 | 5 12 15 Average Carried 10 | 2 7 13 Final Capacity 15 | 10 15 15 Final Carried 15 | 4 12 15 Class Distribution -------------------- 100% | Hacker-Mutant Dominant Class ---------------- Hacker-Mutant | -10/Materials Hacker-Mutant | -10/Subcaves Resources | -11 -10 -10 ----------- Run | Yrd Mat Sub Matter Collected 933 | 270 381 282 Remotely . | . . . Salvage Created 918 | . 514 404 Parts 51 | . 19 32 Haulers Intercepted 2 | . 2 . Recyclers Shooed . | . . . Parts Field Recycled . | . . . Retrieved Matter . | . . . Parts Self-Destructed . | . . . Prevented . | . . . Kills | -11 -10 -10 ------- Run | Yrd Mat Sub Combat Hostiles Destroyed 18 | . 9 9 Guns 16 | . 9 7 Cannons 2 | . . 2 Classes Destroyed 7 | . 5 2 Worker 1 | . 1 . Hauler 2 | . 2 . Watcher 2 | . 2 . Swarmer 2 | . 2 . Grunt 7 | . 7 . Sentry 1 | . . 1 Subdweller 8 | . . 8 Best Kill Streak 6 | . 6 3 Combat Bots Only 3 | . 2 3 Max Kills in Single Turn 2 | . 2 1 Gunslinging . | . . . Exploded . | . . . Melee . | . . . Uniques/NPCs Destroyed . | . . . Combat | -11 -10 -10 -------- Run | Yrd Mat Sub Hostile Shots Fired 137 | . 47 90 Missed 36 | . 9 27 Hits 101 | . 38 63 Projectile 101 | . 38 63 Critical Strikes 2 | . 1 1 Damage Taken 1204 | . 306 898 Core 251 | . 42 209 Absorbed by Shields . | . . . Ignored by Resistances 718 | . 189 529 Core Remaining (%) 100 | 100 . . Volleys Fired 79 | . 30 49 Largest 2 | . 2 2 Hottest 105 | . 90 105 Shots Fired 149 | . 60 89 Gun 140 | . 60 80 Cannon 9 | . . 9 Launcher . | . . . Special . | . . . Kinetic 96 | . 23 73 Thermal 25 | . 16 9 Explosive . | . . . Electromagnetic 28 | . 21 7 Robot Hit Streak 41 | . 21 41 Robot Miss Streak 1 | . 1 1 Penetration Max . | . . . Secondary Targets 3 | . 2 1 Max Gunslinging Chain 1 | . 1 1 Shots Hit Robots 126 | . 50 76 Core Hits 44 | . 27 17 Critical Kills . | . . . Critical Parts Destroyed 1 | . . 1 Critical Strikes 3 | . 1 2 Burn 1 | . 1 . Destroy 2 | . . 2 Melee Attacks 11 | . . 11 Impact . | . . . Slashing 11 | . . 11 Piercing . | . . . Sneak Attacks . | . . . Combat Hostiles . | . . . Follow-up Attacks . | . . . Damage Inflicted 1588 | . 681 907 Guns 1343 | . 602 741 Cannons 166 | . . 166 Explosions 79 | . 79 . Melee . | . . . Ramming . | . . . Kinetic 882 | . 163 719 Thermal 443 | . 277 166 Explosive . | . . . Electromagnetic 263 | . 241 22 Impact . | . . . Slashing . | . . . Piercing . | . . . Highest Corruption . | . . . Average Corruption . | . . . Corruption Purged . | . . . Corruption Blocked . | . . . Overload Shots . | . . . Overflow Damage 17 | . 17 . Projectiles . | . . . Explosions 17 | . 17 . Melee . | . . . Knockbacks . | . . . Impact . | . . . Kinetic . | . . . Secondary . | . . . Self-Inflicted Damage . | . . . Shots . | . . . Rammed . | . . . Targets Rammed 1 | . 1 . Kicked 1 | . 1 . Crushed . | . . . Highest Temperature 365 | . 365 149 Average Temperature 85 | . 96 34 Received Heat Transfer 753 | . 249 504 Effects 1 | . 1 . Damage (minor) 1 | . 1 . Siege Activations . | . . . Martial Activations . | . . . Shielding Activations . | . . . Robots Disrupted . | . . . Combat Hostiles . | . . . Robots Corrupted . | . . . Combat Hostiles . | . . . Parts Fried . | . . . Impact Corruptions . | . . . Robots Melted . | . . . Combat Hostiles . | . . . Parts Melted 3 | . 1 2 Heat Transferred 988 | . 766 222 Parts Sabotaged . | . . . Parts Stolen . | . . . Parts Stripped . | . . . Power Chain Reactions 1 | . 1 . Alert | -11 -10 -10 ------- Run | Yrd Mat Sub Maximum Alert Level . | . . . Low Security (%) 100 | 100 100 . Level 1 . | . . . Level 2 . | . . . Level 3 . | . . . Level 4 . | . . . Level 5 . | . . . High Security . | . . . Max Security . | . . . Peak Influence 61 | . 61 . Initial . | . . . Average 6 | . 6 . Influence Increases 306 | . 286 20 Destroy 0b10 Robot/C 200 | . 180 20 Destroy 0b10 Robot/NC 25 | . 25 . Destroy Leader 68 | . 68 . Successful Hack 13 | . 13 . Influence Decreases 286 | . 271 15 Entered New Map 10 | . . 10 Time Decay 256 | . 251 5 Lost Part 20 | . 20 . Squads Dispatched 3 | . 3 . Investigation 3 | . 3 . Extermination . | . . . Reinforcement . | . . . Assault . | . . . Garrison . | . . . Intercept . | . . . Searches Triggered . | . . . Construction Impeded . | . . . Haulers Reinforced . | . . . Active Scanning Responses . | . . . Cargo Convoy Interrupts . | . . . Stealth | -11 -10 -10 --------- Run | Yrd Mat Sub Distress Signals 1 | . 1 . Communications Jammed . | . . . Distress Signals . | . . . Times Spotted 24 | . 14 10 Peak Tracking Total 4 | . 4 3 Tactical Retreats . | . . . Traps | -11 -10 -10 ------- Run | Yrd Mat Sub Traps Triggered 1 | . 1 . Indirectly . | . . . Trap Hack Attempts . | . . . Triggered . | . . . Disarmed . | . . . Reprogrammed . | . . . Reused . | . . . Traps Extracted . | . . . Installed . | . . . Triggered . | . . . Machines | -11 -10 -10 ---------- Run | Yrd Mat Sub Machines Disabled . | . . . Max in Single Turn . | . . . Machines Repaired . | . . . Machines Dismantled . | . . . Machines Sabotaged . | . . . Overloaded Fab Kills . | . . . Hacking | -11 -10 -10 --------- Run | Yrd Mat Sub Machines Accessed 7 | . 6 1 Terminals 6 | . 6 . Fabricators . | . . . Repair Stations . | . . . Recycling Units . | . . . Scanalyzers . | . . . Garrison Access . | . . . Total Hacks 33 | . 30 3 Successful 27 | . 24 3 Failed 6 | . 6 . Catastrophic . | . . . Database Lockouts . | . . . Manual 1 | . . 1 Terminals 30 | . 30 . Fabricators . | . . . Repair Stations . | . . . Recycling Units . | . . . Scanalyzers . | . . . Garrison Access . | . . . Terminal Hacks 27 | . 24 3 Record 10 | . 7 3 Robot Analysis 1 | . 1 . Prototype ID Bank 1 | . 1 . Branch Access Points 1 | . 1 . Emergency Access Points 2 | . 2 . Locate Traps 4 | . 4 . Dispatch Records 1 | . 1 . Maintenance Status 1 | . 1 . Surveillance Status 1 | . 1 . Reinforcement Status 1 | . 1 . Hauler Manifests 1 | . 1 . Zone Layout 3 | . 3 . Fabricator Hacks . | . . . Repair Station Hacks . | . . . Recycling Unit Hacks . | . . . Scanalyzer . | . . . Garrison Access Hacks . | . . . Unauthorized Hacks . | . . . Terminals . | . . . Fabricators . | . . . Repair Stations . | . . . Recycling Units . | . . . Scanalyzers . | . . . Garrison Access . | . . . Data Cores Recovered . | . . . Used . | . . . Hacking Detections 5 | . 5 . Full Trace Events 5 | . 5 . Feedback Events . | . . . Feedback Blocked . | . . . Robot Schematics Acquired . | . . . Robots Built . | . . . Authchips . | . . . Time . | . . . Total Robot Build Rating . | . . . Part Schematics Acquired . | . . . Parts Built . | . . . Authchips . | . . . Time . | . . . Total Part Build Rating . | . . . Parts Repaired . | . . . Time . | . . . Parts Recycled . | . . . Recycled Matter . | . . . Retrieved Matter . | . . . Retrieved Components . | . . . Parts Scanalyzed . | . . . Part Schematics Acquired . | . . . Parts Damaged . | . . . Bothacking | -11 -10 -10 ------------ Run | Yrd Mat Sub Used RIF Installer . | . . . Robots Hacked . | . . . Non-combat . | . . . Combat . | . . . Robot Hacks Applied . | . . . Relay Couplers Released . | . . . Fabnet Peak Effective % . | . . . Robots Rewired . | . . . Allies Hacked . | . . . Hacks Repelled . | . . . Allies | -11 -10 -10 -------- Run | Yrd Mat Sub Total Allies . | . . . Largest Group . | . . . Highest-Rated Group . | . . . Highest-Rated Ally . | . . . Total Orders . | . . . Ally Attacks . | . . . Total Damage . | . . . Kills . | . . . Allies Corrupted . | . . . Allies Melted . | . . . Intel | -11 -10 -10 ------- Run | Yrd Mat Sub Active Infowar (turns) . | . . . Robot Analysis Total 1 | . 1 . Derelict Logs Recovered 1 | . . 1 Drone Launches . | . . . Drone Recoveries . | . . . Exploration | -11 -10 -10 ------------- Run | Yrd Mat Sub Turns Passed 2170 | 86 1051 1033 Spaces Moved 985 | 68 487 430 Core 22 | 21 1 . Treads . | . . . Legs 963 | 47 486 430 Wheels . | . . . Hover . | . . . Flight . | . . . Fastest Speed 50 | 50 190 190 Average Speed 185 | 105 191 192 Slowest Speed 550 | 150 550 330 Overloaded Moves . | . . . Propulsion Burnouts . | . . . Robots Hopped . | . . . Potential Cave-ins . | . . . Cave-ins Triggered . | . . . Exploration Rate (%) 41 | 4 82 39 Regions Visited 2 Branch Regions 1 Pre-discovered Areas . | . . . Known Exits Taken 2 | 1 1 . Unknown Exits Taken . | . . . Scrap Searched . | . . . Spaces Dug . | . . . Terrain Destroyed . | . . . Melee . | . . . Projectile . | . . . AOE . | . . . Terrain Rammed . | . . . Walls Destroyed . | . . . Machines Disabled . | . . . Actions | -11 -10 -10 --------- Run | Yrd Mat Sub Total 1164 | 79 551 534 Wait 18 | . 15 3 Move 983 | 67 486 430 Hop . | . . . Pick Up 21 | 5 10 6 Fast Attach 13 | 6 . 7 Attach 9 | 1 3 5 Detach 4 | . . 4 Swap 7 | . 4 3 Drop 7 | . 2 5 Fire 79 | . 30 49 Melee 11 | . . 11 Ram . | . . . Kick 1 | . 1 . Crush . | . . . Escape Stasis . | . . . Rewire 11 | . . 11 Trap . | . . . Miscellaneous . | . . . Route ------- -11/Scrapyard -10/Materials (discovered 5 exits: *Mat x2 / *Min x2 / *Sub) -10/Subcaves (discovered 3 exits: Mat x2 / Rec) History --------- Turn | Location | Event 3 | -11/Scrapyard | Identified exit to Materials 3 | -11/Scrapyard | Discovered exit to Materials (range 16) 87 | -11/Scrapyard | Entered Materials 87 | -10/Materials | Evolved 1 slot: Power x1 303 | -10/Materials | Build established: Hacker-Mutant 363 | -10/Materials | Identified exit to Mines 363 | -10/Materials | Discovered exit to Mines (range 15) 423 | -10/Materials | Discovered exit to Mines (range 16) 541 | -10/Materials | Identified exit to Materials 541 | -10/Materials | Discovered exit to Materials (range 14) 944 | -10/Materials | Discovered exit to Materials (range 9) 1104 | -10/Materials | Identified exit to Subcaves 1104 | -10/Materials | Discovered exit to Subcaves (range 16) 1138 | -10/Materials | Entered Subcaves 1182 | -10/Subcaves | Learned 4 Materials zone layouts 1311 | -10/Subcaves | Visited Clippyterm 1317 | -10/Subcaves | Identified exit to Materials 1317 | -10/Subcaves | Identified exit to Recycling 1588 | -10/Subcaves | A swath of the cavern ceiling suddenly collapsed 1820 | -10/Subcaves | Lost 3 parts (1p1n1w) 1866 | -10/Subcaves | Shifting Twisted Machinery released Battle Rifle 1873 | -10/Subcaves | Shifting Twisted Machinery released Mak. Sword 1938 | -10/Subcaves | A Subdweller sparked back to life 1938 | -10/Subcaves | A Subdweller sparked back to life 1938 | -10/Subcaves | A Subdweller sparked back to life 1939 | -10/Subcaves | Core integrity fell below 50% 1979 | -10/Subcaves | Found Prototype Leg 2042 | -10/Subcaves | Core integrity fell below 20% 2171 | -10/Subcaves | Destroyed by S-10 Pest with Light Assault Rifle Last Messages --------------- 02022_ UF-OB2(R) affixes Scrap Shield Fragment to Scrap Shield. 02025_ Ion Engine destroyed. 02030_ Sub. Power Source shoots sparks and powers down. 02045_ Destroyed Scrap Shield. 02048_ UF-OB2(R) destroyed. 02058_ Acquired Sub. Power Source. 02060_ Dropped Broken Sub. Power Source. 02065_ Subatomizers dissect the Aluminum Leg. 02068_ Acquired Aluminum Leg. 02079_ Acquired Sub. Power Source. 02083_ Acquired 35 matter. 02085_ Acquired 103 matter. 02090_ Subatomizers dissect the Sub. Beam Cannon. 02092_ Dropped Sub. Laser. 02093_ Acquired Dirty Datajack. 02105_ Subatomizers dissect the Sub. Beam Cannon. 02170_ Y-45 Defender destroyed. Map ----- +----------------------------------------------------+ | ?????????????????????????????????????????????????? | | ?????????????????????????????????????????????????? | | ?????????????????????????????????????????????????? | | ?????????????????????????????????????????????????? | | ?????????????????????????????????????????????????? | | ?????????????????????????????????????????????????? | | ?????????????????????????????????????????????????? | | ?????????????????????????????????????????????????? | | ?????????????????????????????????????????????????? | | ?????????????????????????????????????????????????? | | ?????????????????????????????????????????????????? | | ?????????????????????????????????????????????????? | | ??????????????????????????###????????????????????? | | ?????????????????????????## ##???????????????????? | | ????????????????????????## #???###?????????????? | | ????????????????????????# #???# ##???????????? | | ?????????????????????????# #???# #???????????? | | ???????????????#?????????# #????# ##??????????? | | ???????????? ## ???????# ##???# #??????????? | | ???????????? =??????# #???# ##?????????? | | ??????????? [%!?????# ##??## #?????????? | | ?????????? * ????# ##### #?????????? | | ?????????? #### ## # ##????????? | | ????????????????# s #????????? | | ????????????????# #????????? | | ????????????????# @ ## ### ##???????? | | ????????????????# & & ####?# # & #???????? | | ????????????????# &%# #???## ##"" #???????? | | ????????????? && ##???###" #???????? | | ???????????# # #????# !"!" #???????? | | ???????????? ### ## #????##=*%[=!#???????? | | ????????????????## ####### ###??# " !&*]#???????? | | ?????????????????##?????# #?# &[= %##???????? | | ?????????????????????????## ## !![[#????????? | | ???????????????????????????# ###????????? | | ???????????????????????????## #??????????? | | ????????????????????????????## ##??????????? | | ?????????????????????????????## ##"#???????????? | | ??????????????????????????????## ####???????????? | | ???????????????????????????????# #??????????????? | | ??????????????????????????????## ##?????????????? | | ??????????????????????????????# #?????????????? | | ??????????????????????????????## ##?????????????? | | ??????????????????????????????# #?????????????? | | ??????????????????????????????## ##?????????????? | | ??????????????????????????????# #######???????? | | ??????????????????????????????## """""""##??????? | | ???????????????????????????????# | """#??????? | | ???????????????????????????????## # #??????? | | ????????????????????????????????### # ##??????? | +----------------------------------------------------+ Best States ------------- Heat Dissipation 25 Energy Generation 25 Energy Capacity 400 Matter Stores 300 Matter Capacity 300 Sight Range 16 Terrain Scan Density 10 Resistance: KI 35 Resistance: TH 35 Resistance: EX 35 Resistance: EM 35 Resistance: I 35 Resistance: S 35 Resistance: P 35 Evasion (%) 50 Offensive Hacking 20 Item Schematics ----------------- None Robot Schematics ------------------ None Fabricated ------------ Nothing Repaired ---------- Nothing Alien Tech Used ----------------- None Achievements -------------- None Challenges ------------ None Game ------ Seed GammaActuatorSheargun Manual? 0 Play Time 00:19:50 Cumulative 2066.6 hours Start 2025.06.11 @ 13:09:13 End 2025.06.11 @ 13:26:01 Sessions 1 Manual Loads 0 Difficulty Explorer Special Mode None Game No. 1033 Rogue 62 Adventurer 0 Explorer 971 Win Type - Total 11 Types 11/0/0/0/0/0/0/0/0/0 Lore% 59 Gallery% 71 Achievement% 64 Wizard Run 0 Options --------- Layout 1 ASCII 0 Keyboard 0 Movement Mouse Keybinds 0 Fullscreen 1 Font 48/Smallcaps Map View 55x35 Zoom Use 0% Tactical HUD 1 Map Filters NONE Filters NONE Steam 1 RUN: 61043849-8fba-4bca-b687-9054af64ead7